Workbook

Sheet TravelReimbursement
B1: Please only enter data in YELLOW fields. | K1: Employee Travel Reimbursement Form
B2: If Excel error appears, click "Enable". | K2: Department of English and Comparative Literature
K3: Department of American Studies
J5: Total Reimbursement | K5: =+K38+K86+K115 -> $1,046.14
C6: Traveler Name: | D6: John Flysalot | F6: Travel City: | G6: Orlando | I6: =IF(G7="North Carolina","InState","OutofState") -> OutofState | J6: Date | K6: Time
C7: Traveler PID: | D7: 9876-54321 | F7: Travel State: | G7: Florida | I7: Departure: | J7: 2015-01-08 | K7: 10:00:00
F8: Travel Country: | G8: United States | I8: Return: | J8: 2015-01-11 | K8: 19:00:00
B10: Purpose and Description of Trip (flights from where to where, etc.): | D10: Flew RDU to Orlando round-trip for the annual meeting of the YENSID Association.
B13: Weekday: | D13: Sun. | E13: Mon. | F13: Tues. | G13: Wed. | H13: Thur. | I13: Fri. | J13: Sat. | K13: Weekly | L13: Running
B14: Relevant Dates ® | D14: =IF(J7="","m/d",(J7-VLOOKUP(WEEKDAY(J7),t_weekday,2))) -> 2015-01-04 | E14: =IFERROR(D14+1,"m/d") -> 2015-01-05 | F14: =IFERROR(E14+1,"m/d") -> 2015-01-06 | G14: 2015-01-07 | H14: 2015-01-08 | I14: 2015-01-09 | J14: 2015-01-10 | K14: Total | L14: Total
A15: Please enter amounts into the relevant category by dates:
B16: Transportation
B17: Airfare/Train | H17: 450.00 | K17: =SUM(D17:J17) -> $450.00 | L17: =K17 -> $450.00
B18: Taxi/Tolls/Public | H18: 25.00 | K18: =SUM(D18:J18) -> $25.00 | L18: =K18 -> $25.00
B19: Rental Car / Gas | K19: 0 | L19: 0
B20: Parking | K20: 0 | L20: 0
B21: Subtotal Transport | D21: =SUM(D17:D20) -> 0 | E21: =SUM(E17:E20) -> 0 | F21: 0 | G21: 0 | H21: 475.00 | I21: 0 | J21: 0 | K21: =SUM(K17:K20) -> $475.00 | L21: =SUM(L17:L20) -> $475.00
B22: Mileage
C23: Enter miles driven --> | H23: 11 | K23: =SUM(D23:J23) -> 11 | L23: =K23 -> 11
D24: =IF(r_totalmileage<=100,D23*r_mileage_higher,IF(f_car_higherrate="x",D23*r_mileage_higher,D23*r_mileage_lower)) -> 0 | E24: =IF(r_totalmileage<=100,E23*r_mileage_higher,IF(f_car_higherrate="x",E23*r_mileage_higher,E23*r_mileage_lower)) -> 0 | F24: 0 | G24: 0 | H24: 6.33 | I24: 0 | J24: 0 | K24: =SUM(D24:J24) -> $6.33 | L24: =K24 -> $6.33
B25: Lodging & Other
B26: Hotel | H26: 129.43 | I26: 129.43 | J26: 129.43 | K26: =SUM(D26:J26) -> $388.29 | L26: =K26 -> $388.29
B27: Internet | K27: =SUM(D27:J27) -> 0 | L27: 0
B28: Telephone | K28: 0 | L28: 0
B29: Registration fees | K29: 0 | L29: 0
B30: Other | K30: 0 | L30: 0
B31: Subtotal Lodging & Other | D31: =SUM(D26:D30) -> 0 | E31: =SUM(E26:E30) -> 0 | F31: 0 | G31: 0 | H31: 129.43 | I31: 129.43 | J31: 129.43 | K31: $388.29 | L31: $388.29
A32: Please enter "x" into the appropriate meal for each date charged:
B33: Meals
B34: Breakfast | I34: x | J34: x
B35: Lunch | H35: x | I35: x | J35: x
B36: Dinner | H36: x | I36: x
B37: Subtotal Meals | D37: =IF(toggle_state="InState",SUMPRODUCT(--((D34:D36)="x"),InState),SUMPRODUCT(--((D34:D36)="x"),OutofState)) -> 0 | E37: 0 | F37: 0 | G37: 0 | H37: 31.60 | I37: 39.80 | J37: 18.90 | K37: =SUM(D37:J37) -> $90.30 | L37: =K37 -> $90.30
B38: Total by Day | D38: =D21+D24+D31+D37 -> 0 | E38: 0 | F38: 0 | G38: 0 | H38: $642.36 | I38: $169.23 | J38: $148.33 | K38: $959.92 | L38: $959.92
K39: =IF(K38<>$K$5,"Continued on next page","") -> Continued on next page
B40: Notes (optional): (press alt+enter to add new lines within a cell) | D40: This example shows that Dr Flysalot drove from his home to RDU Airport and parked there (paid for parking on the 11th when he returned) flew to Orlando (round trip airfare noted on day of departure), took a cab to the hotel, and stayed three nights. Saturday night dinner was an event included in registration, so no per diem for that meal. No breakfast per diem due to time of departure on Thursday and no dinner per diem due to time of return on Sunday (departure before 6am receives breakfast per diem, return after 8pm for dinner per diem). Took cab back to airport on Sunday, flew back to RDU, paid for parking and drove home.
D43: Enter source of funds (name or number): | E43: Arts and Sciences, $400 department funds per Beverly
H45: Supplemental Info for Mileage:
C46: Please ensure all original receipts related to this trip are attached and legible. Missing receipts will delay your reimbursement.
H47: Trip exceeded 100 miles - please "X" in appropriate case:
H48: 1. A state car was not requested. Use state car rate: | L48: x
H50: 2. I requested a state car but one was unavailable -
H51: documentation of the request is attached:
B55: Chartfields (Finance Office Use)
C57: Bus Unit | D57: Fund | E57: Source | F57: Dept | G57: Project ID | H57: Program | I57: Cost Code 1 | J57: Cost Code 2 | K57: Cost Code 3
B61: Weekday: | D61: Sun. | E61: Mon. | F61: Tues. | G61: Wed. | H61: Thur. | I61: Fri. | J61: Sat. | K61: Weekly | L61: Running
B62: Relevant Dates ® | D62: =IFERROR(J14+1,"m/d") -> 2015-01-11 | E62: =IFERROR(D62+1,"m/d") -> 2015-01-12 | F62: =IFERROR(E62+1,"m/d") -> 2015-01-13 | G62: =IFERROR(F62+1,"m/d") -> 2015-01-14 | H62: =IFERROR(G62+1,"m/d") -> 2015-01-15 | I62: =IFERROR(H62+1,"m/d") -> 2015-01-16 | J62: =IFERROR(I62+1,"m/d") -> 2015-01-17 | K62: Total | L62: Total
A63: Please enter amounts into the relevant category by dates:
B64: Transportation
B65: Airfare/Train | K65: =SUM(D65:J65) -> 0 | L65: =K65+L17 -> $450.00
B66: Taxi/Tolls/Public | D66: 25.00 | K66: =SUM(D66:J66) -> $25.00 | L66: =K66+L18 -> $50.00
B67: Rental Car / Gas | K67: =SUM(D67:J67) -> 0 | L67: =K67+L19 -> 0
B68: Parking | D68: 36.00 | K68: =SUM(D68:J68) -> $36.00 | L68: =K68+L20 -> $36.00
B69: Subtotal Transport | D69: =SUM(D65:D68) -> 61.00 | E69: 0 | F69: 0 | G69: 0 | H69: 0 | I69: 0 | J69: 0 | K69: $61.00 | L69: =SUM(L65:L68) -> $536.00
B70: Mileage
C71: Enter miles driven --> | D71: 11 | K71: =SUM(D71:J71) -> 11 | L71: =K71+L23 -> 22
D72: =IF(r_totalmileage<=100,D71*r_mileage_higher,IF(f_car_higherrate="x",D71*r_mileage_higher,D71*r_mileage_lower)) -> 6.33 | E72: 0 | F72: 0 | G72: 0 | H72: 0 | I72: 0 | J72: 0 | K72: =SUM(D72:J72) -> $6.33 | L72: =K72+L24 -> $12.65
B73: Lodging & Other
B74: Hotel | K74: =SUM(D74:J74) -> 0 | L74: =K74+L26 -> $388.29
B75: Internet | K75: =SUM(D75:J75) -> 0 | L75: =K75+L27 -> 0
B76: Telephone | K76: =SUM(D76:J76) -> 0 | L76: =K76+L28 -> 0
B77: Registration fees | K77: =SUM(D77:J77) -> 0 | L77: =K77+L29 -> 0
B78: Other | K78: =SUM(D78:J78) -> 0 | L78: =K78+L30 -> 0
B79: Subtotal Lodging & Other | D79: =SUM(D74:D78) -> 0 | E79: =SUM(E74:E78) -> 0 | F79: 0 | G79: 0 | H79: 0 | I79: 0 | J79: 0 | K79: 0 | L79: =SUM(L74:L78) -> $388.29
A80: Please enter "x" into the appropriate meal for each date charged:
B81: Meals
B82: Breakfast | D82: x
B83: Lunch | D83: x
B84: Dinner
B85: Subtotal Meals | D85: =IF(toggle_state="InState",SUMPRODUCT(--((D82:D84)="x"),InState),SUMPRODUCT(--((D82:D84)="x"),OutofState)) -> 18.90 | E85: 0 | F85: 0 | G85: 0 | H85: 0 | I85: 0 | J85: 0 | K85: =SUM(D85:J85) -> $18.90 | L85: =K85+L37 -> $109.20
B86: Total by Day | D86: =D69+D72+D79+D85 -> $86.23 | E86: 0 | F86: 0 | G86: 0 | H86: 0 | I86: 0 | J86: 0 | K86: $86.23 | L86: =L69+L72+L79+L85 -> $1,046.14
B88: Notes (optional): (press alt+enter to add new lines within a cell)
B90: Weekday: | D90: Sun. | E90: Mon. | F90: Tues. | G90: Wed. | H90: Thur. | I90: Fri. | J90: Sat. | K90: Weekly | L90: GRAND
B91: Relevant Dates ® | D91: =IFERROR(J62+1,"m/d") -> 2015-01-18 | E91: =IFERROR(D91+1,"m/d") -> 2015-01-19 | F91: =IFERROR(E91+1,"m/d") -> 2015-01-20 | G91: =IFERROR(F91+1,"m/d") -> 2015-01-21 | H91: =IFERROR(G91+1,"m/d") -> 2015-01-22 | I91: =IFERROR(H91+1,"m/d") -> 2015-01-23 | J91: =IFERROR(I91+1,"m/d") -> 2015-01-24 | K91: Total | L91: TOTAL
A92: Please enter amounts into the relevant category by dates:
B93: Transportation
B94: Airfare/Train | K94: =SUM(D94:J94) -> 0 | L94: =K94+L65 -> $450.00
B95: Taxi/Tolls/Public | K95: =SUM(D95:J95) -> 0 | L95: =K95+L66 -> $50.00
B96: Rental Car / Gas | K96: =SUM(D96:J96) -> 0 | L96: =K96+L67 -> 0
B97: Parking | K97: =SUM(D97:J97) -> 0 | L97: =K97+L68 -> $36.00
B98: Subtotal Transport | D98: =SUM(D94:D97) -> 0 | E98: 0 | F98: 0 | G98: 0 | H98: 0 | I98: 0 | J98: 0 | K98: 0 | L98: $536.00
B99: Mileage
C100: Enter miles driven --> | K100: =SUM(D100:J100) -> 0 | L100: =K100+L71 -> 22
D101: =IF(r_totalmileage<=100,D100*r_mileage_higher,IF(f_car_higherrate="x",D100*r_mileage_higher,D100*r_mileage_lower)) -> 0 | E101: 0 | F101: 0 | G101: 0 | H101: 0 | I101: 0 | J101: 0 | K101: =SUM(D101:J101) -> 0 | L101: =K101+L72 -> $12.65
B102: Lodging & Other
B103: Hotel | K103: =SUM(D103:J103) -> 0 | L103: =K103+L74 -> $388.29
B104: Internet | K104: =SUM(D104:J104) -> 0 | L104: =K104+L75 -> 0
B105: Telephone | K105: =SUM(D105:J105) -> 0 | L105: =K105+L76 -> 0
B106: Registration fees | K106: =SUM(D106:J106) -> 0 | L106: =K106+L77 -> 0
B107: Other | K107: =SUM(D107:J107) -> 0 | L107: =K107+L78 -> 0
B108: Subtotal Lodging & Other | D108: =SUM(D103:D107) -> 0 | E108: =SUM(E103:E107) -> 0 | F108: 0 | G108: 0 | H108: 0 | I108: 0 | J108: 0 | K108: 0 | L108: $388.29
A109: Please enter "x" into the appropriate meal for each date charged:
B110: Meals
B111: Breakfast
B112: Lunch
B113: Dinner
B114: Subtotal Meals | D114: =IF(toggle_state="InState",SUMPRODUCT(--((D111:D113)="x"),InState),SUMPRODUCT(--((D111:D113)="x"),OutofState)) -> 0 | E114: 0 | F114: 0 | G114: 0 | H114: 0 | I114: 0 | J114: 0 | K114: =SUM(D114:J114) -> 0 | L114: =K114+L85 -> $109.20
B115: Total by Day | D115: =D98+D101+D108+D114 -> 0 | E115: =E98+E101+E108+E114 -> 0 | F115: =F98+F101+F108+F114 -> 0 | G115: =G98+G101+G108+G114 -> 0 | H115: =H98+H101+H108+H114 -> 0 | I115: =I98+I101+I108+I114 -> 0 | J115: =J98+J101+J108+J114 -> 0 | K115: =K98+K101+K108+K114 -> 0 | L115: $1,046.14
B117: Notes (optional): (press alt+enter to add new lines within a cell)

Sheet MileageWorksheet (hidden)
A1: Mileage Reimbursement Form
B2: Traveler Name: | C2: =TravelReimbursement!D6:E6 -> 
B4: Date | C4: Expense Detail | E4: Total Miles * | F4: Departure City | G4: Destination City | H4: Round Trip (Y/N)
E6: 200
B21: Accounting Information
B22: Account number | D22: Total miles: | E22: =SUM(E5:E21) -> 200 | F22: (automatic calculation)
B23: Budget Type | D23: Rate per mile: | E23: $0.565 | F23: ** | G23: eff 01/01/10
D24: Total mileage reimbursement: | E24: =+E22*E23 -> $113.00
B25: 69188 | C25: News Department | D25: News Department | F25: Other:
B26: 69187 | C26: Public Affairs Programming (S.O.T. & P.P.) | D26: Public Affairs Programming (S.O.T. & P.P.)
B29: Employee Signature Date
B31: Signature of Approving Dean's Unit Manager Date
G32: Y/N
A33: * | B33: If the trip exceeded 100 total miles, did you request a car from UNC Motor Pool?
B34: If you requested a Motor Pool car and one was not available, please document the
B35: date of your request and the person you spoke to. If you made the request on-line,
B36: please attach a copy. | D36: ______________________________________________
D37: Date of request | F37: Motor Pool Representative
B39: Instructions:
B40: 1. This form can be completed monthly (or earlier if you wish)
B41: 2. Please enter the date, description, and applicable expenses
B42: 3. Please check the account for payment
A43: ** | B43: 4. If a trip exceeds 100 miles, and a UNC Motor Pool vehicle is available,
C44: mileage will only be reimbursed at $.30/mi.

Sheet parameters (hidden)
B1: a_states | D1: a_countries | G1: Updated 2/17/14
D2: United States
B3: North Carolina | D3: Afghanistan | G3: InState | H3: OutofState | J3: a_cartype
B4: Alabama | D4: Albania | F4: Breakfast | G4: 8.2 | H4: 8.2 | J4: Personal car rate - $0.30/mi | K4: $0.300 | L4: r_statecar
B5: Alaska | D5: Algeria | F5: Lunch | G5: 10.7 | H5: 10.7 | J5: State car was unavailable (please provide support) - $0.56/mi | K5: $0.575 | L5: r_personalcar
B6: Arizona | D6: Andorra | F6: Dinner | G6: 18.4 | H6: 20.9
B7: Arkansas | D7: Angola
B8: California | D8: Antigua & Deps | G8: a_x | I8: a_yn
B9: Colorado | D9: Argentina | I9: Y
B10: Connecticut | D10: Armenia | G10: x | I10: N
B11: Delaware | D11: Australia
B12: District of Columbia | D12: Austria | G12: t_weekday
B13: Florida | D13: Azerbaijan | G13: 1 | H13: 0
B14: Georgia | D14: Bahamas | G14: 2 | H14: 1
B15: Hawaii | D15: Bahrain | G15: 3 | H15: 2
B16: Idaho | D16: Bangladesh | G16: 4 | H16: 3
B17: Illinois | D17: Barbados | G17: 5 | H17: 4
B18: Indiana | D18: Belarus | G18: 6 | H18: 5
B19: Iowa | D19: Belgium | G19: 7 | H19: 6
B20: Kansas | D20: Belize
B21: Kentucky | D21: Benin
B22: Louisiana | D22: Bhutan
B23: Maine | D23: Bolivia
B24: Maryland | D24: Bosnia Herzegovina
B25: Massachusetts | D25: Botswana
B26: Michigan | D26: Brazil
B27: Minnesota | D27: Brunei
B28: Mississippi | D28: Bulgaria
B29: Missouri | D29: Burkina
B30: Montana | D30: Burundi
B31: Nebraska | D31: Cambodia
B32: Nevada | D32: Cameroon
B33: New Hampshire | D33: Canada
B34: New Jersey | D34: Cape Verde
B35: New Mexico | D35: Central African Rep
B36: New York | D36: Chad
B37: North Carolina | D37: Chile
B38: North Dakota | D38: China
B39: Ohio | D39: Colombia
B40: Oklahoma | D40: Comoros
B41: Oregon | D41: Congo
B42: Pennsylvania | D42: Congo {Democratic Rep}
B43: Rhode Island | D43: Costa Rica
B44: South Carolina | D44: Croatia
B45: South Dakota | D45: Cuba
B46: Tennessee | D46: Cyprus
B47: Texas | D47: Czech Republic
B48: Utah | D48: Denmark
B49: Vermont | D49: Djibouti
B50: Virginia | D50: Dominica
B51: Washington | D51: Dominican Republic
B52: West Virginia | D52: East Timor
B53: Wisconsin | D53: Ecuador
B54: Wyoming | D54: Egypt
B55: American Samoa | D55: El Salvador
B56: Guam | D56: Equatorial Guinea
B57: Northern Mariana Islands | D57: Eritrea
B58: Puerto Rico | D58: Estonia
B59: United States Virgin Islands | D59: Ethiopia
B60: OUT OF COUNTRY | D60: Fiji
D61: Finland
D62: France
D63: Gabon
D64: Gambia
D65: Georgia
D66: Germany
D67: Ghana
D68: Greece
D69: Grenada
D70: Guatemala
D71: Guinea
D72: Guinea-Bissau
D73: Guyana
D74: Haiti
D75: Honduras
D76: Hungary
D77: Iceland
D78: India
D79: Indonesia
D80: Iran
D81: Iraq
D82: Ireland {Republic}
D83: Israel
D84: Italy
D85: Ivory Coast
D86: Jamaica
D87: Japan
D88: Jordan
D89: Kazakhstan
D90: Kenya
D91: Kiribati
D92: Korea North
D93: Korea South
D94: Kosovo
D95: Kuwait
D96: Kyrgyzstan
D97: Laos
D98: Latvia
D99: Lebanon
D100: Lesotho
D101: Liberia
D102: Libya
D103: Liechtenstein
D104: Lithuania
D105: Luxembourg
D106: Macedonia
D107: Madagascar
D108: Malawi
D109: Malaysia
D110: Maldives
D111: Mali
D112: Malta
D113: Marshall Islands
D114: Mauritania
D115: Mauritius
D116: Mexico
D117: Micronesia
D118: Moldova
D119: Monaco
D120: Mongolia
D121: Montenegro
D122: Morocco
D123: Mozambique
D124: Myanmar, {Burma}
D125: Namibia
D126: Nauru
D127: Nepal
D128: Netherlands
D129: New Zealand
D130: Nicaragua
D131: Niger
D132: Nigeria
D133: Norway
D134: Oman
D135: Pakistan
D136: Palau
D137: Panama
D138: Papua New Guinea
D139: Paraguay
D140: Peru
D141: Philippines
D142: Poland
D143: Portugal
D144: Qatar
D145: Romania
D146: Russian Federation
D147: Rwanda
D148: St Kitts & Nevis
D149: St Lucia
D150: Saint Vincent & the Grenadines
D151: Samoa
D152: San Marino
D153: Sao Tome & Principe
D154: Saudi Arabia
D155: Senegal
D156: Serbia
D157: Seychelles
D158: Sierra Leone
D159: Singapore
D160: Slovakia
D161: Slovenia
D162: Solomon Islands
D163: Somalia
D164: South Africa
D165: South Sudan
D166: Spain
D167: Sri Lanka
D168: Sudan
D169: Suriname
D170: Swaziland
D171: Sweden
D172: Switzerland
D173: Syria
D174: Taiwan
D175: Tajikistan
D176: Tanzania
D177: Thailand
D178: Togo
D179: Tonga
D180: Trinidad & Tobago
D181: Tunisia
D182: Turkey
D183: Turkmenistan
D184: Tuvalu
D185: Uganda
D186: Ukraine
D187: United Arab Emirates
D188: United Kingdom
D189: United States
D190: Uruguay
D191: Uzbekistan
D192: Vanuatu
D193: Vatican City
D194: Venezuela
D195: Vietnam
D196: Yemen
D197: Zambia
D198: Zimbabwe

Sheet Sheet1
